Cogmind - Beta 11 X10 @@@ ROGUE MODE // 2022.02.22 @ 18:52:30 Player: Terminus Result: Destroyed by as-57998 with Assembled F-torch Performance ------------- Evolutions (0) 0 Regions Visited (2) 400 Robots Destroyed (20) 100 Value Destroyed (388) 388 Prototype IDs (0) 0 Alien Tech Used (0) 0 Bonus (0) 0 TOTAL SCORE: 888 Bonus ------- None Cogmind --------- Core Integrity 0/250 Matter 283/300 Energy 107/250 System Corruption 0% Temperature Cool (27) Movement Treading (240) Ox1 Location -10/Mines Parts ------- > --- POWER (1) -------- Ion Engine > --- PROPULSION (2) --- Light Treads Compact Wheel > --- UTILITY (2) ------ Improved Heat Sink Large Storage Unit > --- WEAPON (2) ------- Medium Laser Assault Rifle > --- INVENTORY (15) --- Heat Sink Heat Sink High-capacity Matter Pod (200) Hacking Suite EM Pulse Gun Small Laser Small Laser Small Laser Small Laser Assault Rifle Peak State ------------ > --- POWER ------------ Ion Engine > --- PROPULSION ------- Light Treads Compact Wheel > --- UTILITY ---------- Improved Heat Sink Large Storage Unit > --- WEAPON ----------- Medium Laser Assault Rifle > --- INVENTORY -------- Ion Engine Heat Sink Heat Sink High-capacity Matter Pod Hacking Suite EM Pulse Gun Small Laser Small Laser Small Laser Small Laser Assault Rifle [Rating: 10] Favorites ----------- Power Ion Engine Engine Ion Engine Propulsion Light Treads Treads Light Treads Wheel Compact Wheel Utility Large Storage Unit Device Heat Sink Storage Large Storage Unit Weapon Medium Laser Energy Gun Medium Laser Ballistic Gun Assault Rifle Build | -11 -10 -10 ------- Run | Scr Mat Min Slots Evolved . | . . . Power . | . . . Propulsion . | . . . Utility . | . . . Weapon . | . . . Parts Attached 25 | 6 15 4 Power 5 | 1 3 1 Engine 5 | 1 3 1 Core . | . . . Reactor . | . . . Propulsion 9 | 2 6 1 Treads 7 | 2 5 . Leg . | . . . Wheel 2 | . 1 1 Hover . | . . . Flight . | . . . Utility 4 | 1 2 1 Device 2 | . 1 1 Storage 2 | 1 1 . Processor . | . . . Hackware . | . . . Protection . | . . . Artifact . | . . . Weapon 7 | 2 4 1 Energy Gun 2 | 1 1 . Energy Cannon . | . . . Ballistic Gun 5 | 1 3 1 Ballistic Cannon . | . . . Launcher . | . . . Special Weapon . | . . . Impact Weapon . | . . . Slashing Weapon . | . . . Piercing Weapon . | . . . Special Melee Weapon . | . . . Unidentified Prototypes . | . . . Parts Lost 7 | . 3 4 Power 2 | . 1 1 Propulsion 3 | . 2 1 Utility 1 | . . 1 Weapon 1 | . . 1 Highest Loss Streak 2 | . 2 2 To Critical Strikes 1 | . 1 . Average Slot Usage (%) 86 | . 86 85 Engine 14 | . 14 14 Treads 19 | . 22 14 Wheel 5 | . 4 8 Device 3 | . 3 4 Storage 14 | . 14 14 Energy Gun 13 | . 13 14 Ballistic Gun 13 | . 13 14 Naked Turns . | . . . Heaviest Build 34 | 13 34 30 Greatest Support 40 | 40 40 20 Greatest Overweight (x) 3 | 2 3 1 Average Overweight (x) . | . . 1 Largest Inventory Capacity 15 | 8 15 15 Average Capacity 12 | 7 11 15 Most Carried 12 | 2 12 12 Average Carried 8 | 1 7 11 Final Capacity 15 | 8 15 15 Final Carried 12 | 2 12 10 Class Distribution -------------------- 80% | Mutant 19% | Scavenger-Mutant Dominant Class ---------------- Mutant | -10/Materials Mutant | -10/Mines Resources | -11 -10 -10 ----------- Run | Scr Mat Min Matter Collected 790 | 241 485 64 Remotely . | . . . Salvage Created 805 | 56 694 55 Parts 38 | 2 36 . Haulers Intercepted 1 | . 1 . Recyclers Shooed 4 | . 3 1 Parts Field Recycled . | . . . Retrieved Matter . | . . . Parts Self-Destructed . | . . . Prevented . | . . . Kills | -11 -10 -10 ------- Run | Scr Mat Min Combat Hostiles Destroyed 15 | . 10 5 Guns 15 | . 10 5 Classes Destroyed 9 | 1 6 2 Worker 1 | . 1 . Builder 1 | . 1 . Hauler 1 | . 1 . Recycler 5 | 1 4 . Operator 1 | . 1 . Swarmer 3 | . 3 . Grunt 7 | . 7 . Demolisher 1 | . . 1 Assembled 4 | . . 4 Best Kill Streak 5 | 1 5 3 Combat Bots Only 3 | . 3 3 Max Kills in Single Turn 1 | 1 1 1 Gunslinging . | . . . Exploded . | . . . Melee . | . . . Uniques/NPCs Destroyed . | . . . Combat | -11 -10 -10 -------- Run | Scr Mat Min Damage Taken 922 | . 539 383 Core 251 | . 98 153 Absorbed by Shields . | . . . Core Remaining (%) 100 | 100 . . Volleys Fired 78 | 7 52 19 Largest 2 | 2 2 2 Hottest 70 | 70 70 70 Shots Fired 156 | 14 104 38 Gun 156 | 14 104 38 Cannon . | . . . Launcher . | . . . Special . | . . . Kinetic 78 | 7 52 19 Thermal 78 | 7 52 19 Explosive . | . . . Electromagnetic . | . . . Robot Hit Streak 14 | 2 14 8 Robot Miss Streak 4 | 4 3 2 Penetration Max . | . . . Secondary Targets 1 | . 1 . Max Gunslinging Chain 1 | . 1 . Shots Hit Robots 99 | 6 72 21 Core Hits 44 | 2 32 10 Critical Kills . | . . . Critical Parts Destroyed 1 | . 1 . Critical Strikes 7 | . 6 1 Burn 6 | . 5 1 Destroy 1 | . 1 . Melee Attacks . | . . . Impact . | . . . Slashing . | . . . Piercing . | . . . Sneak Attacks . | . . . Combat Hostiles . | . . . Follow-up Attacks . | . . . Damage Inflicted 1205 | 62 884 259 Guns 1197 | 60 878 259 Cannons . | . . . Explosions . | . . . Melee . | . . . Ramming 8 | 2 6 . Kinetic 588 | 36 442 110 Thermal 609 | 24 436 149 Explosive . | . . . Electromagnetic . | . . . Impact . | . . . Slashing . | . . . Piercing . | . . . Highest Corruption . | . . . Average Corruption . | . . . Corruption Purged . | . . . Corruption Blocked . | . . . Overload Shots . | . . . Overflow Damage . | . . . Projectiles . | . . . Explosions . | . . . Melee . | . . . Knockbacks . | . . . Impact . | . . . Kinetic . | . . . Secondary . | . . . Self-Inflicted Damage . | . . . Shots . | . . . Rammed 3 | 1 2 . Targets Rammed 4 | 1 3 . Kicked . | . . . Crushed 1 | . 1 . Highest Temperature 222 | 80 222 36 Average Temperature 48 | 31 60 14 Received Heat Transfer 367 | . 267 100 Siege Activations . | . . . Robots Corrupted . | . . . Combat Hostiles . | . . . Parts Fried . | . . . Impact Corruptions . | . . . Robots Melted . | . . . Combat Hostiles . | . . . Parts Melted 5 | . 5 . Heat Transferred 2257 | 74 1665 518 Parts Sabotaged . | . . . Parts Stolen . | . . . Parts Stripped . | . . . Power Chain Reactions . | . . . Missiles Intercepted . | . . . Alert | -11 -10 -10 ------- Run | Scr Mat Min Peak Influence 395 | 5 395 110 Initial 95 | . 3 95 Average 104 | . 126 88 Maximum Alert Level 1 | . 1 . Low Security (%) 80 | 100 66 100 Level 1 19 | . 33 . Level 2 . | . . . Level 3 . | . . . Level 4 . | . . . Level 5 . | . . . High Security . | . . . Max Security . | . . . Squads Dispatched 2 | . 2 . Investigation 1 | . 1 . Extermination . | . . . Reinforcement 1 | . 1 . Assault . | . . . Garrison . | . . . Intercept . | . . . Construction Impeded . | . . . Haulers Reinforced . | . . . Active Scanning Responses . | . . . Cargo Convoy Interrupts . | . . . Stealth | -11 -10 -10 --------- Run | Scr Mat Min Distress Signals 6 | . 6 . Communications Jammed . | . . . Distress Signals . | . . . Times Spotted 32 | . 24 8 Peak Tracking Total 4 | . 4 3 Tactical Retreats 3 | . 3 . Traps | -11 -10 -10 ------- Run | Scr Mat Min Traps Triggered 3 | . 3 . Indirectly . | . . . Trap Hack Attempts . | . . . Triggered . | . . . Disarmed . | . . . Reprogrammed . | . . . Reused . | . . . Traps Extracted . | . . . Installed . | . . . Triggered . | . . . Machines | -11 -10 -10 ---------- Run | Scr Mat Min Machines Disabled . | . . . Max in Single Turn . | . . . Machines Sabotaged . | . . . Garrisons Compromised . | . . . Overloaded Fab Kills . | . . . Hacking | -11 -10 -10 --------- Run | Scr Mat Min Machines Accessed 4 | . 4 . Terminals 3 | . 3 . Fabricators . | . . . Repair Stations . | . . . Recycling Units 1 | . 1 . Scanalyzers . | . . . Garrison Access . | . . . Total Hacks 10 | . 10 . Successful 5 | . 5 . Failed 5 | . 5 . Catastrophic 1 | . 1 . Database Lockouts . | . . . Manual 9 | . 9 . Terminals 9 | . 9 . Fabricators . | . . . Repair Stations . | . . . Recycling Units 1 | . 1 . Scanalyzers . | . . . Garrison Access . | . . . Terminal Hacks 1 | . 1 . Zone Layout 1 | . 1 . Fabricator Hacks . | . . . Repair Station Hacks . | . . . Recycling Unit Hacks . | . . . Scanalyzer . | . . . Garrison Access Hacks . | . . . Unauthorized Hacks 4 | . 4 . Terminals 3 | . 3 . Botnet 3 | . 3 . Fabricators . | . . . Repair Stations . | . . . Recycling Units 1 | . 1 . Tunnel 1 | . 1 . Scanalyzers . | . . . Garrison Access . | . . . Data Cores Recovered . | . . . Used . | . . . Hacking Detections 3 | . 3 . Full Trace Events . | . . . Feedback Events . | . . . Feedback Blocked . | . . . Robot Schematics Acquired . | . . . Robots Built . | . . . Authchips . | . . . Time . | . . . Total Robot Build Rating . | . . . Part Schematics Acquired . | . . . Parts Built . | . . . Authchips . | . . . Time . | . . . Total Part Build Rating . | . . . Parts Repaired . | . . . Time . | . . . Parts Recycled . | . . . Recycled Matter . | . . . Retrieved Matter . | . . . Retrieved Components . | . . . Parts Scanalyzed . | . . . Part Schematics Acquired . | . . . Parts Damaged . | . . . Bothacking | -11 -10 -10 ------------ Run | Scr Mat Min Used RIF Installer . | . . . Robots Hacked . | . . . Non-combat . | . . . Combat . | . . . Robot Hacks Applied . | . . . Relay Couplers Released . | . . . Fabnet Peak Effective % . | . . . Robots Rewired . | . . . Allies Hacked . | . . . Hacks Repelled . | . . . Allies | -11 -10 -10 -------- Run | Scr Mat Min Total Allies . | . . . Largest Group . | . . . Highest-Rated Group . | . . . Highest-Rated Ally . | . . . Total Orders . | . . . Ally Attacks . | . . . Total Damage . | . . . Kills . | . . . Allies Corrupted . | . . . Allies Melted . | . . . Intel | -11 -10 -10 ------- Run | Scr Mat Min Robot Analysis Total . | . . . Derelict Logs Recovered 1 | . . 1 Drone Launches . | . . . Drone Recoveries . | . . . Exploration | -11 -10 -10 ------------- Run | Scr Mat Min Turns Passed 1368 | 108 815 445 Spaces Moved 624 | 60 355 209 Core 33 | 26 7 . Treads 359 | 34 256 69 Legs . | . . . Wheels 232 | . 92 140 Hover . | . . . Flight . | . . . Fastest Speed 50 | 50 100 115 Average Speed 153 | 129 156 156 Slowest Speed 240 | 160 240 240 Overloaded Moves . | . . . Propulsion Burnouts . | . . . Robots Hopped . | . . . Cave-ins Triggered . | . . . Exploration Rate (%) 38 | 4 58 52 Regions Visited 2 Branch Regions 1 Pre-discovered Areas 3 | . 1 2 Known Exits Taken . | . . . Unknown Exits Taken 2 | 1 1 . Scrap Searched . | . . . Spaces Dug . | . . . Terrain Destroyed . | . . . Melee . | . . . Projectile . | . . . AOE . | . . . Terrain Rammed . | . . . Walls Destroyed . | . . . Machines Disabled . | . . . Actions | -11 -10 -10 --------- Run | Scr Mat Min Total 876 | 75 512 289 Wait 121 | . 64 57 Move 622 | 59 354 209 Hop . | . . . Pick Up 18 | 2 16 . Fast Attach 18 | 6 10 2 Attach 4 | . 2 2 Detach . | . . . Swap 3 | . 3 . Drop 8 | . 8 . Fire 78 | 7 52 19 Melee . | . . . Ram . | . . . Kick . | . . . Crush 4 | 1 3 . Escape Stasis . | . . . Rewire . | . . . Trap . | . . . Miscellaneous . | . . . Route ------- -11/Scrapyard -10/Materials (discovered 4 exits: [*Mat x3] / [*Min]) -10/Mines History --------- Turn | Location | Event 19 | -11/Scrapyard | Discovered new exit (range 15) 109 | -11/Scrapyard | Entered Materials 204 | -10/Materials | Discovered new exit (range 16) 304 | -10/Materials | Build established: Mutant 309 | -10/Materials | Discovered new exit (range 5) 443 | -10/Materials | Discovered new exit (range 8) 829 | -10/Materials | Discovered new exit (range 17) 924 | -10/Materials | Entered Mines 938 | -10/Mines | Assembled infested the area 1030 | -10/Mines | Core integrity fell below 50% 1111 | -10/Mines | Core integrity fell below 20% 1195 | -10/Mines | Learned location of Storage (-8) 1369 | -10/Mines | Destroyed by as-57998 with Assembled F-torch Last Messages --------------- 01172_ as-44675 destroyed. 01175_ Acquired 3 matter. 01195_ A derelict emerges from the shadows: "Are any of them following you? I'm here trying to lose some heat after our second raid on Storage failed. Whatever you do stay away from that place, they've tightened security following our previous successful raids." World map updated: -8/Storage. 01197_ HQ-8WC(g): "We scattered so the Unaware couldn't effectively use their advantage in numbers, and I suggest you do the same." 01197_ HQ-8WC(g) slips back into the shadows. 01271_ Acquired Com. Wheel. 01272_ R-06 Scavenger collects Wheel. 01278_ R-06 Scavenger collects Lgt. Ion Engine. 01296_ Acquired 13 matter. 01301_ Acquired derelict log, extracted data. World map confirmed: -8/Recycling. 01312_ Acquired Imp. Heat Sink. 01317_ Acquired 10 matter. 01362_ Ion Engine destroyed. 01367_ Destroyed Asb. Hover Unit. Map ----- +----------------------------------------------------+ | ??????????????????????????? ???????## | | ?????????????????????????? ????????#### | | ?????????????????????????# ??????????## | | ?????????????????????????# ??????????## | | ????????????????????????? ?????????## | | ???????????????????????? ????????## | | ???????????????????????? ## ???????# | | ????????????????????????#?## ####???????# | | ???????????????????????????###????###????####### | | ????????????????????????????????### #?????????### | | ???????????????????????????????## #????####### | | ???????????????????????????????# ##??# | | ??????????????????????????????? """= #### | | ??????????????????????????????# """ #### | | ??????????????????????????????# """ #??? | | ??????????????????????????????# ######??? | | ??????????????????????????????## ## # #???????? | | ????????????????????###????????????#### #???????? | | ???????????????????## #??????????????# #???????? | | ???????????? ?????## ##????????????# #???????? | | ????????????? #### ##???????????# ########? | | ??????????????? | a ####????????# | | ????????????????? ##???????# ########? | | ???????????????????# a #?####### %#???????? | | ????????????????????#a #?#! #???????? | | ?????????????????????# @ #??#%########???????? | | ?????????????????????##* ###??#=#??????????????? | | ??????????????????????#%! ##????#[#??????????????? | | ?????????????????????## #?????#%#??????????????? | | ?????????????????##### ##?????# #??????????????? | | ????????????????## #??????#!#??????????????? | | ????????????????# #??????#=#??????????????? | | ????????????????# ##?????#*#??????????????? | | ????????????????## #?????#%#??????????????? | | ?????????????????# #?????#=#??????????????? | | ?????????????????## #?????# #??????????????? | | ??????????????????#### #######%###????????????? | | ?????????????????????## ## ##???????????? | | ??????????????????????## #???????????? | | ???????????????????????# #???????????? | | ??????????????????????## ##???????????? | | ??????????????????????# % ######????????????? | | ?????????????????????# ##?????????????????? | | ?????????????????????# ##??????????????????? | | ?????????????????????## #####???????????????????? | | ??????????????????????###????????????????????????? | | ?????????????????????????????????????????????????? | | | | | | | +----------------------------------------------------+ Best States ------------- Heat Dissipation 39 Energy Generation 10 Energy Capacity 250 Matter Stores 300 Matter Capacity 300 Sight Range 16 Terrain Scan Density 10 Evasion (%) 50 Recoil Reduction 2 Item Schematics ----------------- None Robot Schematics ------------------ None Fabricated ------------ Nothing Alien Tech Used ----------------- None Achievements -------------- None Challenges ------------ None Game ------ Seed MagneticSurveybotMultirail Manual? 0 Play Time 00:08:30 Cumulative 1435.4 hours Start 2022.02.22 @ 18:45:52 End 2022.02.22 @ 18:52:30 Sessions 1 Manual Loads 0 Difficulty Rogue Special Mode None Game No. 505 Rogue 505 Adventurer 0 Explorer 0 Win Type - Total 103 Types 22/12/43/5/1/2/16/1/1 Lore% 96 Gallery% 96 Achievement% 86 Wizard Run 0 Options --------- ASCII 0 Keyboard 0 Movement Numpad Keybinds 0 Fullscreen 1 Font 18/SmallcapsGlow Map View 76x50 Tactical HUD 1 Map Filters NONE Filters NONE Steam 1 RUN: 862150a0-7da9-442e-976b-7af435e8dd1d